{"text_format":"3","workbook":"xlsx","n_sheets":1,"sheets":["Лист1"],"not_rendered":{"external_links":3},"read":"whole","date_system":"1900"}

{"sheet":"Лист1","index":0,"n_rows":203,"n_cols":6,"rows_kept":203,"merged":[[0,0,0,5],[2,0,2,5]]}
["Форма1"]
[null,"\"Утверждаю\" Руководитель Исполнительного комитета Алексеевского муниципального района Республики Татарстан _____________ О.А.Гайнуллин"]
["План мероприятий учреждений культуры Республики Татарстан в рамках федерального проекта «Культура для школьников» на 2023 год\n"]
["№ п/п","Наименование муниципального района ( образования)","Наименование учреждения","Наименование мероприятия","Дата проведения мероприятия ","Блок проекта: «Культпоход», «Культурный\nклуб» и «Цифровая культура»"]
[1,"Алексеевский район","МБУ \"Районный дом культуры Алексеевского муниципального района РТ\", пгт Алексеевское","Игровая программа \"Ёлка в гости зовёт\"","Январь","\"КультПоход\""]
[2,"Алексеевский район","МБУ \"Районный дом культуры Алексеевского муниципального района РТ\", пгт Алексеевское","Литературно-музыкальная композиция \"Афганистан болит в моей душе\"","Февраль","\"КультПоход\""]
[3,"Алексеевский район","МБУ \"Районный дом культуры Алексеевского муниципального района РТ\", пгт Алексеевское","Литературно-музыкальная композиция \"Отчизны славные сыны\"","Февраль","\"КультПоход\""]
[4,"Алексеевский район","МБУ \"Районный дом культуры Алексеевского муниципального района РТ\", пгт Алексеевское","Конкурсно-игровая программа \"Как на Масленой неделе\"","Март","\"КультПоход\""]
[5,"Алексеевский район","МБУ \"Районный дом культуры Алексеевского муниципального района РТ\", пгт Алексеевское","Мастер-класс по блинам \"Блинное царство\"","Март","\"КультПоход\""]
[6,"Алексеевский район","МБУ \"Районный дом культуры Алексеевского муниципального района РТ\", пгт Алексеевское, Соборная площадь","Флешмоб \"Путь к звёздам\"","Апрель","\"КультПоход\""]
[7,"Алексеевский район","МБУ \"Районный дом культуры Алексеевского муниципального района РТ\", пгт Алексеевское","Цикл праздничных мероприятий ко Дню Победы","Май","\"КультПоход\""]
[8,"Алексеевский район","МБУ \"Районный дом культуры Алексеевского муниципального района РТ\", пгт Алексеевское","Литературно-музыкальная композиция \"Строки, опалённые войной\"","Май","\"КультПоход\""]
[9,"Алексеевский район","МБУ \"Районный дом культуры Алексеевского муниципального района РТ\", пгт Алексеевское","Фестиваль одаренной молодёжи \"Фейерверк талантов\"","Май","\"КультПоход\""]
[10,"Алексеевский район","МБУ \"Районный дом культуры Алексеевского муниципального района РТ\", пгт Алексеевское","День защиты детей-игровая программа ","июнь","КультПоход"]
[11,"Алексеевский район","МБУ \"Районный дом культуры Алексеевского муниципального района РТ\", пгт Алексеевское","Поэтический марафон «Давайте Пушкина читать»","Июнь","КультПоход"]
[12,"Алексеевский район","МБУ \"Районный дом культуры Алексеевского муниципального района РТ\", пгт Алексеевское","Мастер-класс «Основы техники грима»","Июнь","КультПоход"]
[13,"Алексеевский район","МБУ \"Районный дом культуры Алексеевского муниципального района РТ\", пгт Алексеевское","Конкурс фигур из песка на пляже","Июль","КультПоход"]
[14,"Алексеевский район","МБУ \"Районный дом культуры Алексеевского муниципального района РТ\", пгт Алексеевское","Спортивно – игровая программа для многодетных семьей «За здоровьем всей семьей»","Июль","КультПоход"]
[15,"Алексеевский район","МБУ \"Районный дом культуры Алексеевского муниципального района РТ\", пгт Алексеевское","Межконфессиональный фестиваль \"Родниковый рай\"","Июль","КультПоход"]
[16,"Алексеевский район","МБУ \"Районный дом культуры Алексеевского муниципального района РТ\", пгт Алексеевское","Праздник двора (концерт, мастер – классы, флешмобы и т.д.)","Август","КультПоход"]
[17,"Алексеевский район","МБУ \"Районный дом культуры Алексеевского муниципального района РТ\", пгт Алексеевское, Соборная площадь","Горжусь тобой, мой Татарстан\" -познавательно-игровая программа","Август","КультПоход"]
[18,"Алексеевский район","МБУ \"Районный дом культуры Алексеевского муниципального района РТ\", пгт Алексеевское","Праздник \"Литературный дворик\"","Сентябрь","\"КультПоход\""]
[19,"Алексеевский район","МБУ \"Районный дом культуры Алексеевского муниципального района РТ\", пгт Алексеевское","Акция добра для детей приюта \"Забота\"","Октябрь","\"КультПоход\""]
[20,"Алексеевский район","МБУ \"Районный дом культуры Алексеевского муниципального района РТ\", пгт Алексеевское","Интерактивная программа \"Достойные потомки великой страны\"","Ноябрь","\"КультПоход\""]
[21,"Алексеевский район","МБУ \"Районный дом культуры Алексеевского муниципального района РТ\", пгт Алексеевское","Игровая программа \"Нескучные каникулы\"","Ноябрь","\"КультПоход\""]
[22,"Алексеевский район","МБУ \"Районный дом культуры Алексеевского муниципального района РТ\", пгт Алексеевское","Мероприятие к декаде инвалидов \"День добрых сердец\"","Декабрь","\"КультПоход\""]
[23,"Алексеевский район","МБУ \"Районный дом культуры Алексеевского муниципального района РТ\", пгт Алексеевское","Праздничная программа \"Святые символы России\"","Декабрь","\"КультПоход\""]
[24,"Алексеевский район","МБУ \"Районный дом культуры Алексеевского муниципального района РТ\", пгт Алексеевское","Театрализованная программа, посвящённая открытию Центральной ёлки","Декабрь","\"КультПоход\""]
[25,"Алексеевский район","МБУ \"Районный дом культуры Алексеевского муниципального района РТ\", пгт Алексеевское","Театрализованное игровое представление для детей","Декабрь","\"КультПоход\""]
[26,"Алексеевский район","МБУ \"ЦБС Алексеевского муниципального района Республики Татарстан\"",{"$f":"[1]Лист1!D4","v":"\"Рождество у вотрот\" - вечер\nфольклора"},{"$f":"[1]Лист1!E4","v":"2023-01-05"},{"$f":"[1]Лист1!F4","v":"Культпоход"}]
[27,"Алексеевский район","МБУ \"ЦБС Алексеевского муниципального района Республики Татарстан\"",{"$f":"[1]Лист1!D5","v":"\"Заводной Тим Собакин\" - литературное знакомство "},{"$f":"[1]Лист1!E5","v":"2023-01-09"},{"$f":"[1]Лист1!F5","v":"Культпоход"}]
[28,"Алексеевский район","МБУ \"ЦБС Алексеевского муниципального района Республики Татарстан\"",{"$f":"[1]Лист1!D6","v":"\"Музеи мира\" - виртуальное \nпутешествие по музеям мира в\nрамках недели \"Музеи и дети\""},{"$f":"[1]Лист1!E6","v":"2023-01-09"},{"$f":"[1]Лист1!F6","v":"Культпоход"}]
[29,"Алексеевский район","МБУ \"ЦБС Алексеевского муниципального района Республики Татарстан\"",{"$f":"[1]Лист1!D7","v":"\"Заповедными тропами\" - урок экологии"},{"$f":"[1]Лист1!E7","v":"2023-01-10"},{"$f":"[1]Лист1!F7","v":"Культпоход"}]
[30,"Алексеевский район","МБУ \"ЦБС Алексеевского муниципального района Республики Татарстан\"",{"$f":"[1]Лист1!D8","v":"\"Сказочный мир Шарля Перро\" - игра-путешествие"},{"$f":"[1]Лист1!E8","v":"2023-01-12"},{"$f":"[1]Лист1!F8","v":"Культпоход"}]
[31,"Алексеевский район","МБУ \"ЦБС Алексеевского муниципального района Республики Татарстан\"",{"$f":"[1]Лист1!D9","v":"\"Уроки добра Лидии Чарской\" - литературный час"},{"$f":"[1]Лист1!E9","v":"2023-01-19"},{"$f":"[1]Лист1!F9","v":"Культпоход"}]
[32,"Алексеевский район","МБУ \"ЦБС Алексеевского муниципального района Республики Татарстан\"",{"$f":"[1]Лист1!D10","v":"\"По страницам блокадного Ленинграда\" - час памяти"},{"$f":"[1]Лист1!E10","v":"2023-01-27"},{"$f":"[1]Лист1!F10","v":"Культпоход"}]
[33,"Алексеевский район","МБУ \"ЦБС Алексеевского муниципального района Республики Татарстан\"",{"$f":"[1]Лист1!D11","v":" \"Холокост — память и предупреждение\" - библиотечный урок"},{"$f":"[1]Лист1!E11","v":"2023-01-30"},{"$f":"[1]Лист1!F11","v":"Культпоход"}]
[34,"Алексеевский район","МБУ \"ЦБС Алексеевского муниципального района Республики Татарстан\"",{"$f":"[1]Лист1!D12","v":"\"Непокоримый Сталинград\" - \nчас патриотизма в день воинской\nславы"},{"$f":"[1]Лист1!E12","v":"2023-02-02"},{"$f":"[1]Лист1!F12","v":"Культпоход"}]
[35,"Алексеевский район","МБУ \"ЦБС Алексеевского муниципального района Республики Татарстан\"",{"$f":"[1]Лист1!D13","v":"\"Дети войны\" - час памяти к дню\nюного героя-антифашиста"},{"$f":"[1]Лист1!E13","v":"2023-02-08"},{"$f":"[1]Лист1!F13","v":"Культпоход"}]
[36,"Алексеевский район","МБУ \"ЦБС Алексеевского муниципального района Республики Татарстан\"",{"$f":"[1]Лист1!D14","v":"\"Живой мир в рассказах Пришвина\" - литературный час"},{"$f":"[1]Лист1!E14","v":"2023-02-09"},{"$f":"[1]Лист1!F14","v":"Культпоход"}]
[37,"Алексеевский район","МБУ \"ЦБС Алексеевского муниципального района Республики Татарстан\"",{"$f":"[1]Лист1!D15","v":"\"Мелодия родного языка\" - \nурок культуры к международному дню родного языка"},{"$f":"[1]Лист1!E15","v":"2023-02-21"},{"$f":"[1]Лист1!F15","v":"Культпоход"}]
[38,"Алексеевский район","МБУ \"ЦБС Алексеевского муниципального района Республики Татарстан\"",{"$f":"[1]Лист1!D16","v":"\"Лихие забавы на Руси\" - военно-\nисторический турнир к дню Защитника\nОтечества"},{"$f":"[1]Лист1!E16","v":"2023-02-22"},{"$f":"[1]Лист1!F16","v":"Культпоход"}]
[39,"Алексеевский район","МБУ \"ЦБС Алексеевского муниципального района Республики Татарстан\"",{"$f":"[1]Лист1!D17","v":"\"Вкусное солнышко\" - фольклорный\nпраздник к началу масленницы"},{"$f":"[1]Лист1!E17","v":"2023-02-23"},{"$f":"[1]Лист1!F17","v":"Культпоход"}]
[40,"Алексеевский район","МБУ \"ЦБС Алексеевского муниципального района Республики Татарстан\"",{"$f":"[1]Лист1!D18","v":"\"Книга из рук в руки\" - познавательный час к всемирному дню писателя"},{"$f":"[1]Лист1!E18","v":"2023-03-02"},{"$f":"[1]Лист1!F18","v":"Культпоход"}]
[41,"Алексеевский район","МБУ \"ЦБС Алексеевского муниципального района Республики Татарстан\"",{"$f":"[1]Лист1!D19","v":"\"Имя тебе - женщина\" - поэти-\nческий вечер к международному женскому дню"},{"$f":"[1]Лист1!E19","v":"2023-03-07"},{"$f":"[1]Лист1!F19","v":"Культпоход"}]
[42,"Алексеевский район","МБУ \"ЦБС Алексеевского муниципального района Республики Татарстан\"",{"$f":"[1]Лист1!D20","v":"\"Сказочные уроки Ушинского\" - литературный час к 200-летию писателя"},{"$f":"[1]Лист1!E20","v":"2023-03-10"},{"$f":"[1]Лист1!F20","v":"Культпоход"}]
[43,"Алексеевский район","МБУ \"ЦБС Алексеевского муниципального района Республики Татарстан\"",{"$f":"[1]Лист1!D21","v":"Цикл мероприятий: Неделя \nдетской книги:"},{"$f":"[1]Лист1!E21","v":"21.03 - 27.03.2023"},{"$f":"[1]Лист1!F21","v":"Культпоход"}]
[44,"Алексеевский район","МБУ \"ЦБС Алексеевского муниципального района Республики Татарстан\"",{"$f":"[1]Лист1!D22","v":"а) \"Судьба природы в наших \nруках\" - экологическая викторина"},{"$f":"[1]Лист1!E22","v":"2023-03-21"},{"$f":"[1]Лист1!F22","v":"Культпоход"}]
[45,"Алексеевский район","МБУ \"ЦБС Алексеевского муниципального района Республики Татарстан\"",{"$f":"[1]Лист1!D23","v":"б) \"Путешествие в Прессландию\"-\nобзор периодических изданий\n"},{"$f":"[1]Лист1!E23","v":"2023-03-22"},{"$f":"[1]Лист1!F23","v":"Культпоход"}]
[46,"Алексеевский район","МБУ \"ЦБС Алексеевского муниципального района Республики Татарстан\"",{"$f":"[1]Лист1!D24","v":"в) \"Поэт из страны детства\" - \nигра-путешествие к юбилею С. Михалкова"},{"$f":"[1]Лист1!E24","v":"2023-03-23"},{"$f":"[1]Лист1!F24","v":"Культпоход"}]
[47,"Алексеевский район","МБУ \"ЦБС Алексеевского муниципального района Республики Татарстан\"",{"$f":"[1]Лист1!D25","v":"г) \"Мы читаем сказки Максима Горького\" - час час чтения вслух к юбилею писателя"},{"$f":"[1]Лист1!E25","v":"2023-03-24"},{"$f":"[1]Лист1!F25","v":"Культпоход"}]
[48,"Алексеевский район","МБУ \"ЦБС Алексеевского муниципального района Республики Татарстан\"",{"$f":"[1]Лист1!D26","v":"д) \"У нас в гостях Ералаш\" - библиотечный кинозал ко дню смеха"},{"$f":"[1]Лист1!E26","v":"2023-03-25"},{"$f":"[1]Лист1!F26","v":"Культпоход"}]
[49,"Алексеевский район","МБУ \"ЦБС Алексеевского муниципального района Республики Татарстан\"",{"$f":"[1]Лист1!D27","v":"е) \"Сказки с экрана\" - библио-\nтечный кинозал"},{"$f":"[1]Лист1!E27","v":"2023-03-27"},{"$f":"[1]Лист1!F27","v":"Культпоход"}]
[50,"Алексеевский район","МБУ \"ЦБС Алексеевского муниципального района Республики Татарстан\"",{"$f":"[1]Лист1!D28","v":"\"Веселей веселого\" - конкурс\nшкольных анекдотов к всемироному дню смеха"},{"$f":"[1]Лист1!E28","v":"2023-03-31"},{"$f":"[1]Лист1!F28","v":"Культпоход"}]
[51,"Алексеевский район","МБУ \"ЦБС Алексеевского муниципального района Республики Татарстан\"",{"$f":"[1]Лист1!D29","v":"\"Быть здоровым здорово!\" - час\nздоровья к всемирному дню здоровья"},{"$f":"[1]Лист1!E29","v":"2023-04-07"},{"$f":"[1]Лист1!F29","v":"Культпоход"}]
[52,"Алексеевский район","МБУ \"ЦБС Алексеевского муниципального района Республики Татарстан\"",{"$f":"[1]Лист1!D30","v":"\"Учитель на страницах книг\" - литературное путешествие"},{"$f":"[1]Лист1!E30","v":"2023-04-10"},{"$f":"[1]Лист1!F30","v":"Культпоход"}]
[53,"Алексеевский район","МБУ \"ЦБС Алексеевского муниципального района Республики Татарстан\"",{"$f":"[1]Лист1!D31","v":"\"Исторические объекты Татар-\nстана\" - виртуальная экскурсия в международный день памятников и исторических мест"},{"$f":"[1]Лист1!E31","v":"2023-04-18"},{"$f":"[1]Лист1!F31","v":"Культпоход"}]
[54,"Алексеевский район","МБУ \"ЦБС Алексеевского муниципального района Республики Татарстан\"",{"$f":"[1]Лист1!D32","v":"\"Наша хрупкая планета\" - час\nинформации"},{"$f":"[1]Лист1!E32","v":"2023-04-22"},{"$f":"[1]Лист1!F32","v":"Культпоход"}]
[55,"Алексеевский район","МБУ \"ЦБС Алексеевского муниципального района Республики Татарстан\"",{"$f":"[1]Лист1!D33","v":"\"Осторовский - челове-легенда\" - литературная гостиная"},{"$f":"[1]Лист1!E33","v":"2023-04-24"},{"$f":"[1]Лист1!F33","v":"Культпоход"}]
[56,"Алексеевский район","МБУ \"ЦБС Алексеевского муниципального района Республики Татарстан\"",{"$f":"[1]Лист1!D34","v":"\"Весеннее солнце взошло над\nземлей\" - час поэзии к дню Солнца"},{"$f":"[1]Лист1!E34","v":"2023-05-03"},{"$f":"[1]Лист1!F34","v":"Культпоход"}]
[57,"Алексеевский район","МБУ \"ЦБС Алексеевского муниципального района Республики Татарстан\"",{"$f":"[1]Лист1!D35","v":"\"Война прошла по нашим \nсудьбам\" - вечер-воспоминание к дню Победы"},{"$f":"[1]Лист1!E35","v":"2023-05-06"},{"$f":"[1]Лист1!F35","v":"Культпоход"}]
[58,"Алексеевский район","МБУ \"ЦБС Алексеевского муниципального района Республики Татарстан\"",{"$f":"[1]Лист1!D36","v":"\"Военное детство\" - обзор ли-\nтературы о детях войны"},{"$f":"[1]Лист1!E36","v":"2023-05-11"},{"$f":"[1]Лист1!F36","v":"Культпоход"}]
[59,"Алексеевский район","МБУ \"ЦБС Алексеевского муниципального района Республики Татарстан\"",{"$f":"[1]Лист1!D37","v":"\"Семейные традиции народов\nТатарстана\" - час фольклора к международному дню семьи"},{"$f":"[1]Лист1!E37","v":"2023-05-15"},{"$f":"[1]Лист1!F37","v":"Культпоход"}]
[60,"Алексеевский район","МБУ \"ЦБС Алексеевского муниципального района Республики Татарстан\"",{"$f":"[1]Лист1!D38","v":"\"Родники Славянской культуры\"\nурок культуры к дню славянской письменности"},{"$f":"[1]Лист1!E38","v":"2023-05-19"},{"$f":"[1]Лист1!F38","v":"Культпоход"}]
[61,"Алексеевский район","МБУ \"ЦБС Алексеевского муниципального района Республики Татарстан\"",{"$f":"[1]Лист1!D39","v":"\"Профессия вечная - библиотечная\" - день открытых дверей к всероссйискому дню библиотек\n"},{"$f":"[1]Лист1!E39","v":"2023-05-26"},{"$f":"[1]Лист1!F39","v":"Культпоход"}]
[62,"Алексеевский район","МБУ \"ЦБС Алексеевского муниципального района Республики Татарстан\"",{"$f":"[1]Лист1!D40","v":"\"Поэзия, как лучик золотой\"- поэтическая радуга к юбилею Е. Благининой"},{"$f":"[1]Лист1!E40","v":"2023-05-29"},{"$f":"[1]Лист1!F40","v":"Культпоход"}]
[63,"Алексеевский район","МБУ \"ЦБС Алексеевского муниципального района Республики Татарстан\"",{"$f":"[1]Лист1!D41","v":"«Наше счастливое детство»\n - литературный праздник к \nмеждународному дню защиты\n детей"},{"$f":"[1]Лист1!E41","v":"2023-06-01"},{"$f":"[1]Лист1!F41","v":"Культпоход"}]
[64,"Алексеевский район","МБУ \"ЦБС Алексеевского муниципального района Республики Татарстан\"",{"$f":"[1]Лист1!D42","v":" «Что ни сказка – то диковинка»\n - сказочная викторина к\n Пушкинскому дню России"},{"$f":"[1]Лист1!E42","v":"2023-06-06"},{"$f":"[1]Лист1!F42","v":"Культпоход"}]
[65,"Алексеевский район","МБУ \"ЦБС Алексеевского муниципального района Республики Татарстан\"",{"$f":"[1]Лист1!D43","v":"«Россия – Родина моя!» - \nчас родиноведения к Дню \nРоссии"},{"$f":"[1]Лист1!E43","v":"2023-06-09"},{"$f":"[1]Лист1!F43","v":"Культпоход"}]
[66,"Алексеевский район","МБУ \"ЦБС Алексеевского муниципального района Республики Татарстан\"",{"$f":"[1]Лист1!D44","v":"«Хотим все знать» - \nигра-викторина к дню знаний"},{"$f":"[1]Лист1!E44","v":"2023-09-05"},{"$f":"[1]Лист1!F44","v":"Культпоход"}]
[67,"Алексеевский район","МБУ \"ЦБС Алексеевского муниципального района Республики Татарстан\"",{"$f":"[1]Лист1!D45","v":"«Терроризм – угроза \nобществу» - беседа к дню\n солидарности в борьбе\n с терроризмом"},{"$f":"[1]Лист1!E45","v":"2023-09-06"},{"$f":"[1]Лист1!F45","v":"Культпоход"}]
[68,"Алексеевский район","МБУ \"ЦБС Алексеевского муниципального района Республики Татарстан\"",{"$f":"[1]Лист1!D46","v":"\"Наш товарищ Борис Заходер\" - \nлитературный утренник"},{"$f":"[1]Лист1!E46","v":"2023-09-08"},{"$f":"[1]Лист1!F46","v":"Культпоход"}]
[69,"Алексеевский район","МБУ \"ЦБС Алексеевского муниципального района Республики Татарстан\"",{"$f":"[1]Лист1!D47","v":"\"Славен во все времена\" -\nпознаваетльный час"},{"$f":"[1]Лист1!E47","v":"2023-09-12"},{"$f":"[1]Лист1!F47","v":"Культпоход"}]
[70,"Алексеевский район","МБУ \"ЦБС Алексеевского муниципального района Республики Татарстан\"",{"$f":"[1]Лист1!D48","v":"«Культурное наследие \nТатарстана» - урок культуры\n в рамках проекта\n «Культурный дневник\n школьника»"},{"$f":"[1]Лист1!E48","v":"2023-09-19"},{"$f":"[1]Лист1!F48","v":"Культпоход"}]
[71,"Алексеевский район","МБУ \"ЦБС Алексеевского муниципального района Республики Татарстан\"",{"$f":"[1]Лист1!D49","v":"«Мудрые наставники»- \nурок нравственности к \n дню пожилых людей"},{"$f":"[1]Лист1!E49","v":"2023-10-03"},{"$f":"[1]Лист1!F49","v":"Культпоход"}]
[72,"Алексеевский район","МБУ \"ЦБС Алексеевского муниципального района Республики Татарстан\"",{"$f":"[1]Лист1!D50","v":"\"Мир Владислава Крапивина\" - \nлитературное знакомство"},{"$f":"[1]Лист1!E50","v":"2023-10-13"},{"$f":"[1]Лист1!F50","v":"Культпоход"}]
[73,"Алексеевский район","МБУ \"ЦБС Алексеевского муниципального района Республики Татарстан\"",{"$f":"[1]Лист1!D51","v":"\"Книжный остров Тамары \nКрюковой\" - литературное\nпутешествие\""},{"$f":"[1]Лист1!E51","v":"2023-10-17"},{"$f":"[1]Лист1!F51","v":"Культпоход"}]
[74,"Алексеевский район","МБУ \"ЦБС Алексеевского муниципального района Республики Татарстан\"",{"$f":"[1]Лист1!D52","v":"«Наша сила в единстве» - \nчас патриотизма к дню\n народного единства"},{"$f":"[1]Лист1!E52","v":"2023-11-03"},{"$f":"[1]Лист1!F52","v":"Культпоход"}]
[75,"Алексеевский район","МБУ \"ЦБС Алексеевского муниципального района Республики Татарстан\"",{"$f":"[1]Лист1!D53","v":"\"Время читать Тургенева\" - \nлитературный час"},{"$f":"[1]Лист1!E53","v":"2023-11-09"},{"$f":"[1]Лист1!F53","v":"Культпоход"}]
[76,"Алексеевский район","МБУ \"ЦБС Алексеевского муниципального района Республики Татарстан\"",{"$f":"[1]Лист1!D54","v":"\"Улыбка и смех — это для всех\" -\nгромкие читки"},{"$f":"[1]Лист1!E54","v":"2023-11-23"},{"$f":"[1]Лист1!F54","v":"Культпоход"}]
[77,"Алексеевский район","МБУ \"ЦБС Алексеевского муниципального района Республики Татарстан\"",{"$f":"[1]Лист1!D55","v":"«Неизвестный солдат! \nБезымянный солдат!»\n час истории к дню \nнеизвестного солдата."},{"$f":"[1]Лист1!E55","v":"2023-12-04"},{"$f":"[1]Лист1!F55","v":"Культпоход"}]
[78,"Алексеевский район","МБУ \"ЦБС Алексеевского муниципального района Республики Татарстан\"",{"$f":"[1]Лист1!D56","v":"«Добрые люди среди нас\n живут» - час нравственности к\nмеждународному дню\n инвалидов"},{"$f":"[1]Лист1!E56","v":"2023-12-05"},{"$f":"[1]Лист1!F56","v":"Культпоход"}]
[79,"Алексеевский район","МБУ \"ЦБС Алексеевского муниципального района Республики Татарстан\"",{"$f":"[1]Лист1!D57","v":"\"мастер улыбки - Виктор \nДрагунский\" - литературное\n знакомство"},{"$f":"[1]Лист1!E57","v":"2023-12-06"},{"$f":"[1]Лист1!F57","v":"Культпоход"}]
[80,"Алексеевский район","МБУ \"ЦБС Алексеевского муниципального района Республики Татарстан\"",{"$f":"[1]Лист1!D58","v":"«В крылатом слове\n окрыленная истина» -\n интеллектуальная игра\n в день Наума грамотника"},{"$f":"[1]Лист1!E58","v":"2023-12-14"},{"$f":"[1]Лист1!F58","v":"Культпоход"}]
[81,"Алексеевский район","МБУ \"ЦБС Алексеевского муниципального района Республики Татарстан\"",{"$f":"[1]Лист1!D59","v":"«Новогодний переполох» - \nпраздничный утренник. "},{"$f":"[1]Лист1!E59","v":"22 12.2023"},{"$f":"[1]Лист1!F59","v":"Культпоход"}]
[82,"Алексеевский район","МБО ДО \"Алексеевская ДШИ\"",{"$f":"[2]Лист1!D4","v":"Программа  \"Старый новый год в кругу друзей\""},{"$f":"[2]Лист1!E4","v":"январь"},{"$f":"[2]Лист1!F4","v":"КультПоход"}]
[83,"Алексеевский район","МБО ДО \"Алексеевская ДШИ\"",{"$f":"[2]Лист1!D5","v":"Информационная беседа посвященная 100 - летию со дня рождения Л.И. Гайдая"},{"$f":"[2]Лист1!E5","v":"январь"},{"$f":"[2]Лист1!F5","v":"КультПоход"}]
[84,"Алексеевский район","МБО ДО \"Алексеевская ДШИ\"",{"$f":"[2]Лист1!D6","v":"Выставка работ \"По мотивам произведений Жюля Верна\" посвященный 190- летию со дня рождения"},{"$f":"[2]Лист1!E6","v":"февраль"},{"$f":"[2]Лист1!F6","v":"Культурный клуб"}]
[85,"Алексеевский район","МБО ДО \"Алексеевская ДШИ\"",{"$f":"[2]Лист1!D7","v":"Выставка творческих работ«На страже Родины», посвященная Дню защитника отечества"},{"$f":"[2]Лист1!E7","v":"февраль"},{"$f":"[2]Лист1!F7","v":"Культурный клуб"}]
[86,"Алексеевский район","МБО ДО \"Алексеевская ДШИ\"",{"$f":"[2]Лист1!D8","v":"Онлайн выставка «Есть в марте особенный день..», посвященная 8 марта"},{"$f":"[2]Лист1!E8","v":"март"},{"$f":"[2]Лист1!F8","v":"Цифровая культура"}]
[87,"Алексеевский район","МБО ДО \"Алексеевская ДШИ\"",{"$f":"[2]Лист1!D9","v":"Информационная беседа  посвященная 345 - летию со дня рождения Антонио Вивальди"},{"$f":"[2]Лист1!E9","v":"март"},{"$f":"[2]Лист1!F9","v":"КультПоход"}]
[88,"Алексеевский район","МБО ДО \"Алексеевская ДШИ\"",{"$f":"[2]Лист1!D10","v":"Информационная беседа посвященная 200 -летию со дня рождения А.Н. Островского"},{"$f":"[2]Лист1!E10","v":"апрель"},{"$f":"[2]Лист1!F10","v":"КультПоход"}]
[89,"Алексеевский район","МБО ДО \"Алексеевская ДШИ\"",{"$f":"[2]Лист1!D11","v":"Концерт посвященный 150 -летию со дня рождения С.В. Рахманинова"},{"$f":"[2]Лист1!E11","v":"апрель"},{"$f":"[2]Лист1!F11","v":"Культурный клуб"}]
[90,"Алексеевский район","МБО ДО \"Алексеевская ДШИ\"",{"$f":"[2]Лист1!D12","v":"Выставка творческих работ «Имя тебе - Победитель», посвященная 9 мая"},{"$f":"[2]Лист1!E12","v":"май"},{"$f":"[2]Лист1!F12","v":"Культурный клуб"}]
[91,"Алексеевский район","МБО ДО \"Алексеевская ДШИ\"",{"$f":"[2]Лист1!D13","v":"Отчетный концерт МБО ДО \"ДШИ\""},{"$f":"[2]Лист1!E13","v":"май"},{"$f":"[2]Лист1!F13","v":"Культурный клуб"}]
[92,"Алексеевский район","МБО ДО \"Алексеевская ДШИ\"",{"$f":"[2]Лист1!D14","v":"Концерт ко Дню знаний МБО ДО \"ДШИ\""},{"$f":"[2]Лист1!E14","v":"сентябрь"},{"$f":"[2]Лист1!F14","v":"Культурный клуб"}]
[93,"Алексеевский район","МБО ДО \"Алексеевская ДШИ\"",{"$f":"[2]Лист1!D15","v":"Выставка работ рисунков - иллюстраций к повестям Л.Н. Толстого, посвященный 195 - летию со дня рождения Л.Н. Толстого"},{"$f":"[2]Лист1!E15","v":"сентябрь"},{"$f":"[2]Лист1!F15","v":"Культурный клуб"}]
[94,"Алексеевский район","МБО ДО \"Алексеевская ДШИ\"",{"$f":"[2]Лист1!D16","v":"Представление кукольного театра по мотивам русских народны сказок \"Колобок\""},{"$f":"[2]Лист1!E16","v":"октябрь"},{"$f":"[2]Лист1!F16","v":"КультПоход"}]
[95,"Алексеевский район","МБО ДО \"Алексеевская ДШИ\"",{"$f":"[2]Лист1!D17","v":"Выставка творческих работ, посвященная Дню пожилого человека \"Днем мудрости зовется этот день\""},{"$f":"[2]Лист1!E17","v":"октябрь"},{"$f":"[2]Лист1!F17","v":"Культурный клуб"}]
[96,"Алексеевский район","МБО ДО \"Алексеевская ДШИ\"",{"$f":"[2]Лист1!D18","v":"Представление кукольного театра по мотивам русских народны сказок \"Курочка Ряба\""},{"$f":"[2]Лист1!E18","v":"октябрь"},{"$f":"[2]Лист1!F18","v":"КультПоход"}]
[97,"Алексеевский район","МБО ДО \"Алексеевская ДШИ\"",{"$f":"[2]Лист1!D19","v":"Информационная беседа, посвященная Дню Государственного флага РТ."},{"$f":"[2]Лист1!E19","v":"ноябрь"},{"$f":"[2]Лист1!F19","v":"КультПоход"}]
[98,"Алексеевский район","МБО ДО \"Алексеевская ДШИ\"",{"$f":"[2]Лист1!D20","v":"Празднечный концерт посвященный ко Дню Матери \"Свет материнской любви\""},{"$f":"[2]Лист1!E20","v":"ноябрь"},{"$f":"[2]Лист1!F20","v":"Культурный клуб"}]
[99,"Алексеевский район","МБО ДО \"Алексеевская ДШИ\"",{"$f":"[2]Лист1!D21","v":"Выставка новогодних поделок \"Новый год -время чуда\""},{"$f":"[2]Лист1!E21","v":"декабрь"},{"$f":"[2]Лист1!F21","v":"Культурный клуб"}]
[100,"Алексеевский район","МБО ДО \"Алексеевская ДШИ\"",{"$f":"[2]Лист1!D22","v":"Большой празднечный концерт \"Чудеса под новый год\""},{"$f":"[2]Лист1!E22","v":"декабрь"},{"$f":"[2]Лист1!F22","v":"Культурный клуб"}]
[101,"Алексеевский район",{"$f":"[3]Лист1!C4","v":"МБУ \"МРК\""},{"$f":"[3]Лист1!D4","v":"Мастер-класс «Приближая Рождество»"},{"$f":"[3]Лист1!E4","v":"3-5.01.23"},{"$f":"[3]Лист1!F4","v":"\"Культурный клуб\""}]
[102,"Алексеевский район",{"$f":"[3]Лист1!C5","v":"МБУ \"МРК\""},{"$f":"[3]Лист1!D5","v":"Музейный урок «Раритеты Музея родного края»"},{"$f":"[3]Лист1!E5","v":"2023-01-10"},{"$f":"[3]Лист1!F5","v":"\"Культурный клуб\""}]
[103,"Алексеевский район",{"$f":"[3]Лист1!C6","v":"МБУ \"МРК\""},{"$f":"[3]Лист1!D6","v":"Музейный урок «Новый год на фронте и в тылу»"},{"$f":"[3]Лист1!E6","v":"2023-01-12"},{"$f":"[3]Лист1!F6","v":"\"Культурный клуб\""}]
[104,"Алексеевский район",{"$f":"[3]Лист1!C7","v":"МБУ \"МРК\""},{"$f":"[3]Лист1!D7","v":"Мастер-класс «Традиционная русская народная игрушка «Солнечный конь»»"},{"$f":"[3]Лист1!E7","v":"2023-01-17"},{"$f":"[3]Лист1!F7","v":"\"Культурный клуб\""}]
[105,"Алексеевский район",{"$f":"[3]Лист1!C8","v":"МБУ \"МРК\""},{"$f":"[3]Лист1!D8","v":"Музейный урок «За нами Ленинград». Участники героической обороны города на Неве"},{"$f":"[3]Лист1!E8","v":"2023-01-18"},{"$f":"[3]Лист1!F8","v":"\"Культурный клуб\""}]
[106,"Алексеевский район",{"$f":"[3]Лист1!C9","v":"МБУ \"МРК\""},{"$f":"[3]Лист1!D9","v":"Экскурсия «Здравствуй, мир музея»"},{"$f":"[3]Лист1!E9","v":"2023-01-24"},{"$f":"[3]Лист1!F9","v":" «Культпоход»"}]
[107,"Алексеевский район",{"$f":"[3]Лист1!C10","v":"МБУ \"МРК\""},{"$f":"[3]Лист1!D10","v":"Трагедия плена. Узники немецких лагерей из Алексеевского района "},{"$f":"[3]Лист1!E10","v":"2023-01-26"},{"$f":"[3]Лист1!F10","v":"\"Культурный клуб\""}]
[108,"Алексеевский район",{"$f":"[3]Лист1!C11","v":"МБУ \"МРК\""},{"$f":"[3]Лист1!D11","v":" Мероприятие «Әбием сандыгы-гаилә мирасы» («Бабушкин сундук-наследие семьи»)."},{"$f":"[3]Лист1!E11","v":"2023-02-01"},{"$f":"[3]Лист1!F11","v":"\"Культурный клуб\""}]
[109,"Алексеевский район",{"$f":"[3]Лист1!C12","v":"МБУ \"МРК\""},{"$f":"[3]Лист1!D12","v":"Музейный урок «Они отстояли Сталинград. Участники героической обороны города на Волге»"},{"$f":"[3]Лист1!E12","v":"2023-02-02"},{"$f":"[3]Лист1!F12","v":"\"Культурный клуб\""}]
[110,"Алексеевский район",{"$f":"[3]Лист1!C13","v":"МБУ \"МРК\""},{"$f":"[3]Лист1!D13","v":"Музейный урок «Православные храмы Алексеевского района»"},{"$f":"[3]Лист1!E13","v":"2023-02-07"},{"$f":"[3]Лист1!F13","v":"\"Культурный клуб\""}]
[111,"Алексеевский район",{"$f":"[3]Лист1!C14","v":"МБУ \"МРК\""},{"$f":"[3]Лист1!D14","v":"Квест ««Из древней глубины веков». Археология родного края»"},{"$f":"[3]Лист1!E14","v":"2023-02-09"},{"$f":"[3]Лист1!F14","v":"\"Культурный клуб\""}]
[112,"Алексеевский район",{"$f":"[3]Лист1!C15","v":"МБУ \"МРК\""},{"$f":"[3]Лист1!D15","v":"Музейный урок «Их именами названы улицы посёлка Алексеевское»"},{"$f":"[3]Лист1!E15","v":"2023-02-14"},{"$f":"[3]Лист1!F15","v":"\"Культурный клуб\""}]
[113,"Алексеевский район",{"$f":"[3]Лист1!C16","v":"МБУ \"МРК\""},{"$f":"[3]Лист1!D16","v":"Музейный урок «Этнография и быт Алексеевского края. Ремёсла Алексеевского края»"},{"$f":"[3]Лист1!E16","v":"2023-02-16"},{"$f":"[3]Лист1!F16","v":"\"Культурный клуб\""}]
[114,"Алексеевский район",{"$f":"[3]Лист1!C17","v":"МБУ \"МРК\""},{"$f":"[3]Лист1!D17","v":"Квест «Военными путями и дорогами»"},{"$f":"[3]Лист1!E17","v":"2023-02-21"},{"$f":"[3]Лист1!F17","v":"\"Культурный клуб\""}]
[115,"Алексеевский район",{"$f":"[3]Лист1!C18","v":"МБУ \"МРК\""},{"$f":"[3]Лист1!D18","v":"21 февраля-День родного языка. Викторина «Туган телем-иркә гөлем».( «Родной язык -мое богатство»)"},{"$f":"[3]Лист1!E18","v":"2023-02-21"},{"$f":"[3]Лист1!F18","v":"\"Культурный клуб\""}]
[116,"Алексеевский район",{"$f":"[3]Лист1!C19","v":"МБУ \"МРК\""},{"$f":"[3]Лист1!D19","v":"Этнографическое занятие, народные игры «Музейная масленица»"},{"$f":"[3]Лист1!E19","v":"2023-02-24"},{"$f":"[3]Лист1!F19","v":"\"Культурный клуб\""}]
[117,"Алексеевский район",{"$f":"[3]Лист1!C20","v":"МБУ \"МРК\""},{"$f":"[3]Лист1!D20","v":"   Лекция-экскурсия «Алексеевский район в годы Великой Отечественной войны. Труженики тыла – делу Победы»"},{"$f":"[3]Лист1!E20","v":"2023-02-28"},{"$f":"[3]Лист1!F20","v":"\"Культурный клуб\""}]
[118,"Алексеевский район",{"$f":"[3]Лист1!C21","v":"МБУ \"МРК\""},{"$f":"[3]Лист1!D21","v":"Мастер-класс «Птица счастья»"},{"$f":"[3]Лист1!E21","v":"2023-03-02"},{"$f":"[3]Лист1!F21","v":"\"Культурный клуб\""}]
[119,"Алексеевский район",{"$f":"[3]Лист1!C22","v":"МБУ \"МРК\""},{"$f":"[3]Лист1!D22","v":"Музейный урок «Роль женщины в истории края»"},{"$f":"[3]Лист1!E22","v":"2023-03-06"},{"$f":"[3]Лист1!F22","v":"\"Культурный клуб\""}]
[120,"Алексеевский район",{"$f":"[3]Лист1!C23","v":"МБУ \"МРК\""},{"$f":"[3]Лист1!D23","v":"Мастер-класс «Народная кукла «Столбушка» своими руками»"},{"$f":"[3]Лист1!E23","v":"2023-03-09"},{"$f":"[3]Лист1!F23","v":"\"Культурный клуб\""}]
[121,"Алексеевский район",{"$f":"[3]Лист1!C24","v":"МБУ \"МРК\""},{"$f":"[3]Лист1!D24","v":"Музейный урок «Война. Женщины и судьбы»"},{"$f":"[3]Лист1!E24","v":"2023-03-14"},{"$f":"[3]Лист1!F24","v":"\"Культурный клуб\""}]
[122,"Алексеевский район",{"$f":"[3]Лист1!C25","v":"МБУ \"МРК\""},{"$f":"[3]Лист1!D25","v":"Музейный урок «На Карельском перешейке»"},{"$f":"[3]Лист1!E25","v":"2023-03-16"},{"$f":"[3]Лист1!F25","v":"\"Культурный клуб\""}]
[123,"Алексеевский район",{"$f":"[3]Лист1!C26","v":"МБУ \"МРК\""},{"$f":"[3]Лист1!D26","v":" Праздник   «Науруз»."},{"$f":"[3]Лист1!E26","v":"2023-03-21"},{"$f":"[3]Лист1!F26","v":"\"Культурный клуб\""}]
[124,"Алексеевский район",{"$f":"[3]Лист1!C27","v":"МБУ \"МРК\""},{"$f":"[3]Лист1!D27","v":"Квест «Аты-баты, шли солдаты»"},{"$f":"[3]Лист1!E27","v":"2023-03-23"},{"$f":"[3]Лист1!F27","v":"\"Культурный клуб\""}]
[125,"Алексеевский район",{"$f":"[3]Лист1!C28","v":"МБУ \"МРК\""},{"$f":"[3]Лист1!D28","v":"Музейный урок «Зачем человеку беречь природу»"},{"$f":"[3]Лист1!E28","v":"2023-03-28"},{"$f":"[3]Лист1!F28","v":"\"Культурный клуб\""}]
[126,"Алексеевский район",{"$f":"[3]Лист1!C29","v":"МБУ \"МРК\""},{"$f":"[3]Лист1!D29","v":"Обзорная экскурсия «Здравствуй, мир музея»"},{"$f":"[3]Лист1!E29","v":"2023-03-30"},{"$f":"[3]Лист1!F29","v":" «Культпоход»"}]
[127,"Алексеевский район",{"$f":"[3]Лист1!C30","v":"МБУ \"МРК\""},{"$f":"[3]Лист1!D30","v":"Лекция – фондовый показ «Гражданская война на территории края и её участники»"},{"$f":"[3]Лист1!E30","v":"2023-04-05"},{"$f":"[3]Лист1!F30","v":"\"Культурный клуб\""}]
[128,"Алексеевский район",{"$f":"[3]Лист1!C31","v":"МБУ \"МРК\""},{"$f":"[3]Лист1!D31","v":"Музейный урок «Трагедия плена. Узники немецких лагерей из Алексеевского района»"},{"$f":"[3]Лист1!E31","v":"2023-04-06"},{"$f":"[3]Лист1!F31","v":"\"Культурный клуб\""}]
[129,"Алексеевский район",{"$f":"[3]Лист1!C32","v":"МБУ \"МРК\""},{"$f":"[3]Лист1!D32","v":"Интерактивное занятие, фондовый показ ««В гостях у бабушки» (коллекция предметов этнографии)»"},{"$f":"[3]Лист1!E32","v":"2023-04-11"},{"$f":"[3]Лист1!F32","v":"\"Культурный клуб\""}]
[130,"Алексеевский район",{"$f":"[3]Лист1!C33","v":"МБУ \"МРК\""},{"$f":"[3]Лист1!D33","v":"«Космос. Мечта и призвание» К полету первой женщины В. В.Терешковой в космос."},{"$f":"[3]Лист1!E33","v":"2023-04-13"},{"$f":"[3]Лист1!F33","v":"\"Культурный клуб\""}]
[131,"Алексеевский район",{"$f":"[3]Лист1!C34","v":"МБУ \"МРК\""},{"$f":"[3]Лист1!D34","v":"Совершен 16 июня 1963 году на космическом"},{"$f":"[3]Лист1!E34","v":"00:00:00"},{"$f":"[3]Лист1!F34","v":"\"Культурный клуб\""}]
[132,"Алексеевский район",{"$f":"[3]Лист1!C35","v":"МБУ \"МРК\""},{"$f":"[3]Лист1!D35","v":"корабле «Восток – 6 »"},{"$f":"[3]Лист1!E35","v":"00:00:00"},{"$f":"[3]Лист1!F35","v":"\"Культурный клуб\""}]
[133,"Алексеевский район",{"$f":"[3]Лист1!C36","v":"МБУ \"МРК\""},{"$f":"[3]Лист1!D36","v":"Проведение мероприятия «Ифтар». Рамадан-2023"},{"$f":"[3]Лист1!E36","v":"2023-04-14"},{"$f":"[3]Лист1!F36","v":"\"Культурный клуб\""}]
[134,"Алексеевский район",{"$f":"[3]Лист1!C37","v":"МБУ \"МРК\""},{"$f":"[3]Лист1!D37","v":"Музейный урок «Генералы-алексеевцы» "},{"$f":"[3]Лист1!E37","v":"2023-04-18"},{"$f":"[3]Лист1!F37","v":"\"Культурный клуб\""}]
[135,"Алексеевский район",{"$f":"[3]Лист1!C38","v":"МБУ \"МРК\""},{"$f":"[3]Лист1!D38","v":"Музейный урок «Прикосновение к истории войны»"},{"$f":"[3]Лист1!E38","v":"2023-04-20"},{"$f":"[3]Лист1!F38","v":"\"Культурный клуб\""}]
[136,"Алексеевский район",{"$f":"[3]Лист1!C39","v":"МБУ \"МРК\""},{"$f":"[3]Лист1!D39","v":"Мероприятие ко дню рождения Г.Тукая.  « Габдулла Тукайның мирасы һәм хәзерге заман» («Наследие и богатство потомков Габдуллы Тукая»)."},{"$f":"[3]Лист1!E39","v":"2023-04-26"},{"$f":"[3]Лист1!F39","v":"\"Культурный клуб\""}]
[137,"Алексеевский район",{"$f":"[3]Лист1!C40","v":"МБУ \"МРК\""},{"$f":"[3]Лист1!D40","v":"Мастер-класс «Цвета огня и дыма»"},{"$f":"[3]Лист1!E40","v":"2023-04-26"},{"$f":"[3]Лист1!F40","v":"\"Культурный клуб\""}]
[138,"Алексеевский район",{"$f":"[3]Лист1!C41","v":"МБУ \"МРК\""},{"$f":"[3]Лист1!D41","v":"Мастер-класс «Цвета огня и дыма»"},{"$f":"[3]Лист1!E41","v":"2023-05-04"},{"$f":"[3]Лист1!F41","v":"\"Культурный клуб\""}]
[139,"Алексеевский район",{"$f":"[3]Лист1!C42","v":"МБУ \"МРК\""},{"$f":"[3]Лист1!D42","v":"День открытых дверей в музее"},{"$f":"[3]Лист1!E42","v":"2023-05-09"},{"$f":"[3]Лист1!F42","v":"\"Культурный клуб\""}]
[140,"Алексеевский район",{"$f":"[3]Лист1!C43","v":"МБУ \"МРК\""},{"$f":"[3]Лист1!D43","v":"Музейный урок «Советские боевые и трудовые награды»"},{"$f":"[3]Лист1!E43","v":"2023-05-11"},{"$f":"[3]Лист1!F43","v":"\"Культурный клуб\""}]
[141,"Алексеевский район",{"$f":"[3]Лист1!C44","v":"МБУ \"МРК\""},{"$f":"[3]Лист1!D44","v":"Музейный урок «Спасали жизнь! Спасали мир!»"},{"$f":"[3]Лист1!E44","v":"2023-05-16"},{"$f":"[3]Лист1!F44","v":"\"Культурный клуб\""}]
[142,"Алексеевский район",{"$f":"[3]Лист1!C45","v":"МБУ \"МРК\""},{"$f":"[3]Лист1!D45","v":"Квест игра «Краеведческой тропой» к Международному дню музеев"},{"$f":"[3]Лист1!E45","v":"2023-05-18"},{"$f":"[3]Лист1!F45","v":"\"Культурный клуб\""}]
[143,"Алексеевский район",{"$f":"[3]Лист1!C46","v":"МБУ \"МРК\""},{"$f":"[3]Лист1!D46","v":"Мастер-класс ««Старая каллиграфия» (искусство письма пером и чернилами)»"},{"$f":"[3]Лист1!E46","v":"2023-05-24"},{"$f":"[3]Лист1!F46","v":"\"Культурный клуб\""}]
[144,"Алексеевский район",{"$f":"[3]Лист1!C47","v":"МБУ \"МРК\""},{"$f":"[3]Лист1!D47","v":"Музейный урок «Алексеевские пограничники 1941 года. Начало Великой Отечественной войны»"},{"$f":"[3]Лист1!E47","v":"2023-05-25"},{"$f":"[3]Лист1!F47","v":"\"Культурный клуб\""}]
[145,"Алексеевский район",{"$f":"[3]Лист1!C48","v":"МБУ \"МРК\""},{"$f":"[3]Лист1!D48","v":"Мастер-класс «Народная кукла «Столбушка» своими руками»"},{"$f":"[3]Лист1!E48","v":"2023-06-01"},{"$f":"[3]Лист1!F48","v":"\"Культурный клуб\""}]
[146,"Алексеевский район",{"$f":"[3]Лист1!C49","v":"МБУ \"МРК\""},{"$f":"[3]Лист1!D49","v":"Мероприятие ко дню русского языка. Пушкинский день России."},{"$f":"[3]Лист1!E49","v":"2023-06-06"},{"$f":"[3]Лист1!F49","v":"\"Культурный клуб\""}]
[147,"Алексеевский район",{"$f":"[3]Лист1!C50","v":"МБУ \"МРК\""},{"$f":"[3]Лист1!D50","v":"Проведение комплексного тематического мероприятия, посвященного Дню России, "},{"$f":"[3]Лист1!E50","v":"2023-06-09"},{"$f":"[3]Лист1!F50","v":"\"Культурный клуб\""}]
[148,"Алексеевский район",{"$f":"[3]Лист1!C51","v":"МБУ \"МРК\""},{"$f":"[3]Лист1!D51","v":"направленного на патриотическое воспитание детей и молодежи"},{"$f":"[3]Лист1!E51","v":"00:00:00"},{"$f":"[3]Лист1!F51","v":"\"Культурный клуб\""}]
[149,"Алексеевский район",{"$f":"[3]Лист1!C52","v":"МБУ \"МРК\""},{"$f":"[3]Лист1!D52","v":"«Ремесла и промыслы земли Алексеевской» ко Деню народных художественных промыслов(18.06)"},{"$f":"[3]Лист1!E52","v":"2023-06-15"},{"$f":"[3]Лист1!F52","v":"\"Культурный клуб\""}]
[150,"Алексеевский район",{"$f":"[3]Лист1!C53","v":"МБУ \"МРК\""},{"$f":"[3]Лист1!D53","v":"Музейный урок «Алексеевские пограничники 1941 года. Начало Великой Отечественной войны»"},{"$f":"[3]Лист1!E53","v":"2023-06-22"},{"$f":"[3]Лист1!F53","v":"\"Культурный клуб\""}]
[151,"Алексеевский район",{"$f":"[3]Лист1!C54","v":"МБУ \"МРК\""},{"$f":"[3]Лист1!D54","v":"Музейный урок «В гостях у бабушки»"},{"$f":"[3]Лист1!E54","v":"2023-06-27"},{"$f":"[3]Лист1!F54","v":"\"Культурный клуб\""}]
[152,"Алексеевский район",{"$f":"[3]Лист1!C55","v":"МБУ \"МРК\""},{"$f":"[3]Лист1!D55","v":"Курбан-байрам. "},{"$f":"[3]Лист1!E55","v":"2023-07-03"},{"$f":"[3]Лист1!F55","v":"\"Культурный клуб\""}]
[153,"Алексеевский район",{"$f":"[3]Лист1!C56","v":"МБУ \"МРК\""},{"$f":"[3]Лист1!D56","v":"Лекция-экскурсия «Этнография и быт Алексеевского края»"},{"$f":"[3]Лист1!E56","v":"2023-07-04"},{"$f":"[3]Лист1!F56","v":"\"Культурный клуб\""}]
[154,"Алексеевский район",{"$f":"[3]Лист1!C57","v":"МБУ \"МРК\""},{"$f":"[3]Лист1!D57","v":"«Огненная дуга» к 80-летию Курской битвы"},{"$f":"[3]Лист1!E57","v":"2023-07-11"},{"$f":"[3]Лист1!F57","v":"\"Культурный клуб\""}]
[155,"Алексеевский район",{"$f":"[3]Лист1!C58","v":"МБУ \"МРК\""},{"$f":"[3]Лист1!D58","v":"Музейный урок «Раритеты Музея родного края»"},{"$f":"[3]Лист1!E58","v":"2023-07-18"},{"$f":"[3]Лист1!F58","v":"\"Культурный клуб\""}]
[156,"Алексеевский район",{"$f":"[3]Лист1!C59","v":"МБУ \"МРК\""},{"$f":"[3]Лист1!D59","v":"Лекция-фондовый показ «Моряки-алексеевцы»"},{"$f":"[3]Лист1!E59","v":"2023-07-28"},{"$f":"[3]Лист1!F59","v":"\"Культурный клуб\""}]
[157,"Алексеевский район",{"$f":"[3]Лист1!C60","v":"МБУ \"МРК\""},{"$f":"[3]Лист1!D60","v":"Беседа, фондовый фото-показ, фото-сессия в военной форме ВДВ из собрания военно-исторического клуба «Звезда» «Крылатая пехота на острие удара»"},{"$f":"[3]Лист1!E60","v":"2023-08-02"},{"$f":"[3]Лист1!F60","v":"\"Культурный клуб\""}]
[158,"Алексеевский район",{"$f":"[3]Лист1!C61","v":"МБУ \"МРК\""},{"$f":"[3]Лист1!D61","v":"Музейный урок «Алексеевское в прошлом и настоящем»"},{"$f":"[3]Лист1!E61","v":"2023-08-10"},{"$f":"[3]Лист1!F61","v":"\"Культурный клуб\""}]
[159,"Алексеевский район",{"$f":"[3]Лист1!C62","v":"МБУ \"МРК\""},{"$f":"[3]Лист1!D62","v":"Экскурсия, интерактивный показ"},{"$f":"[3]Лист1!E62","v":"2023-08-17"},{"$f":"[3]Лист1!F62","v":"\"Культурный клуб\""}]
[160,"Алексеевский район",{"$f":"[3]Лист1!C63","v":"МБУ \"МРК\""},{"$f":"[3]Лист1!D63","v":"с элементами игры «Из древней глубины веков. Археология родного края»"},{"$f":"[3]Лист1!E63","v":"00:00:00"},{"$f":"[3]Лист1!F63","v":"\"Культурный клуб\""}]
[161,"Алексеевский район",{"$f":"[3]Лист1!C64","v":"МБУ \"МРК\""},{"$f":"[3]Лист1!D64","v":"Мастер-класс «Солнечный конь»"},{"$f":"[3]Лист1!E64","v":"2023-08-23"},{"$f":"[3]Лист1!F64","v":"\"Культурный клуб\""}]
[162,"Алексеевский район",{"$f":"[3]Лист1!C65","v":"МБУ \"МРК\""},{"$f":"[3]Лист1!D65","v":"Проведение комплексного тематического мероприятия, посвященного Дню Республики Татарстан, "},{"$f":"[3]Лист1!E65","v":"2023-08-25"},{"$f":"[3]Лист1!F65","v":"\"Культурный клуб\""}]
[163,"Алексеевский район",{"$f":"[3]Лист1!C66","v":"МБУ \"МРК\""},{"$f":"[3]Лист1!D66","v":"направленного на патриотическое воспитание детей и молодежи"},{"$f":"[3]Лист1!E66","v":"00:00:00"},{"$f":"[3]Лист1!F66","v":"\"Культурный клуб\""}]
[164,"Алексеевский район",{"$f":"[3]Лист1!C67","v":"МБУ \"МРК\""},{"$f":"[3]Лист1!D67","v":"Мастер-класс «Краски Родины»"},{"$f":"[3]Лист1!E67","v":"2023-08-28"},{"$f":"[3]Лист1!F67","v":"\"Культурный клуб\""}]
[165,"Алексеевский район",{"$f":"[3]Лист1!C68","v":"МБУ \"МРК\""},{"$f":"[3]Лист1!D68","v":"День открытых дверей для первоклассников"},{"$f":"[3]Лист1!E68","v":"2023-09-01"},{"$f":"[3]Лист1!F68","v":"\"Культурный клуб\""}]
[166,"Алексеевский район",{"$f":"[3]Лист1!C69","v":"МБУ \"МРК\""},{"$f":"[3]Лист1!D69","v":"Мастер-класс «Птица счастья» из джутового шпагата»."},{"$f":"[3]Лист1!E69","v":"2023-09-05"},{"$f":"[3]Лист1!F69","v":"\"Культурный клуб\""}]
[167,"Алексеевский район",{"$f":"[3]Лист1!C70","v":"МБУ \"МРК\""},{"$f":"[3]Лист1!D70","v":"Мастер-класс «Старинная каллиграфия"},{"$f":"[3]Лист1!E70","v":"2023-09-07"},{"$f":"[3]Лист1!F70","v":"\"Культурный клуб\""}]
[168,"Алексеевский район",{"$f":"[3]Лист1!C71","v":"МБУ \"МРК\""},{"$f":"[3]Лист1!D71","v":"Мастер-класс «Кукла столбушка»"},{"$f":"[3]Лист1!E71","v":"2023-09-12"},{"$f":"[3]Лист1!F71","v":"\"Культурный клуб\""}]
[169,"Алексеевский район",{"$f":"[3]Лист1!C72","v":"МБУ \"МРК\""},{"$f":"[3]Лист1!D72","v":"Мастер-класс «Народная кукла из ниток своими руками»"},{"$f":"[3]Лист1!E72","v":"2023-09-14"},{"$f":"[3]Лист1!F72","v":"\"Культурный клуб\""}]
[170,"Алексеевский район",{"$f":"[3]Лист1!C73","v":"МБУ \"МРК\""},{"$f":"[3]Лист1!D73","v":"Музейный урок «В гостях у бабушки»"},{"$f":"[3]Лист1!E73","v":"2023-09-19"},{"$f":"[3]Лист1!F73","v":"\"Культурный клуб\""}]
[171,"Алексеевский район",{"$f":"[3]Лист1!C74","v":"МБУ \"МРК\""},{"$f":"[3]Лист1!D74","v":"Музейный урок «Затопление земель водами Куйбышевского водохранилица»"},{"$f":"[3]Лист1!E74","v":"2023-09-21"},{"$f":"[3]Лист1!F74","v":"\"Культурный клуб\""}]
[172,"Алексеевский район",{"$f":"[3]Лист1!C75","v":"МБУ \"МРК\""},{"$f":"[3]Лист1!D75","v":"Музейный урок «Алексеевцы на дальневосточных рубежах»"},{"$f":"[3]Лист1!E75","v":"2023-09-26"},{"$f":"[3]Лист1!F75","v":"\"Культурный клуб\""}]
[173,"Алексеевский район",{"$f":"[3]Лист1!C76","v":"МБУ \"МРК\""},{"$f":"[3]Лист1!D76","v":"Музейный урок «Исчезнувшие, но не забытые»"},{"$f":"[3]Лист1!E76","v":"2023-09-28"},{"$f":"[3]Лист1!F76","v":"\"Культурный клуб\""}]
[174,"Алексеевский район",{"$f":"[3]Лист1!C77","v":"МБУ \"МРК\""},{"$f":"[3]Лист1!D77","v":"Музейный урок «Солдаты Первой мировой»"},{"$f":"[3]Лист1!E77","v":"2023-10-03"},{"$f":"[3]Лист1!F77","v":"\"Культурный клуб\""}]
[175,"Алексеевский район",{"$f":"[3]Лист1!C78","v":"МБУ \"МРК\""},{"$f":"[3]Лист1!D78","v":"Мастер-класс « О чём рассказала военная фотография»"},{"$f":"[3]Лист1!E78","v":"2023-10-05"},{"$f":"[3]Лист1!F78","v":"\"Культурный клуб\""}]
[176,"Алексеевский район",{"$f":"[3]Лист1!C79","v":"МБУ \"МРК\""},{"$f":"[3]Лист1!D79","v":"Лекция «Овеянные славой полководцев»"},{"$f":"[3]Лист1!E79","v":"2023-10-10"},{"$f":"[3]Лист1!F79","v":"\"Культурный клуб\""}]
[177,"Алексеевский район",{"$f":"[3]Лист1!C80","v":"МБУ \"МРК\""},{"$f":"[3]Лист1!D80","v":"Музейный урок «Исторический хронограф важнейших событий»"},{"$f":"[3]Лист1!E80","v":"2023-10-12"},{"$f":"[3]Лист1!F80","v":"\"Культурный клуб\""}]
[178,"Алексеевский район",{"$f":"[3]Лист1!C81","v":"МБУ \"МРК\""},{"$f":"[3]Лист1!D81","v":"Музейный урок «Их именами названы улицы посёлка Алексеевское»"},{"$f":"[3]Лист1!E81","v":"2023-10-17"},{"$f":"[3]Лист1!F81","v":"\"Культурный клуб\""}]
[179,"Алексеевский район",{"$f":"[3]Лист1!C82","v":"МБУ \"МРК\""},{"$f":"[3]Лист1!D82","v":"Алексеевский район в годы Великой Отечественной войны. Труженики тыла – делу Победы"},{"$f":"[3]Лист1!E82","v":"2023-10-19"},{"$f":"[3]Лист1!F82","v":"\"Культурный клуб\""}]
[180,"Алексеевский район",{"$f":"[3]Лист1!C83","v":"МБУ \"МРК\""},{"$f":"[3]Лист1!D83","v":"Музейный урок «Алексеевские авиаторы»"},{"$f":"[3]Лист1!E83","v":"2023-10-24"},{"$f":"[3]Лист1!F83","v":"\"Культурный клуб\""}]
[181,"Алексеевский район",{"$f":"[3]Лист1!C84","v":"МБУ \"МРК\""},{"$f":"[3]Лист1!D84","v":"Музейный урок «Политические репрессии 1920-1940 гг. и их жертвы в Алексеевском районе»"},{"$f":"[3]Лист1!E84","v":"2023-10-26"},{"$f":"[3]Лист1!F84","v":"\"Культурный клуб\""}]
[182,"Алексеевский район",{"$f":"[3]Лист1!C85","v":"МБУ \"МРК\""},{"$f":"[3]Лист1!D85","v":"Квест-игра «Музейный следопыт»"},{"$f":"[3]Лист1!E85","v":"2023-10-31"},{"$f":"[3]Лист1!F85","v":"\"Культурный клуб\""}]
[183,"Алексеевский район",{"$f":"[3]Лист1!C86","v":"МБУ \"МРК\""},{"$f":"[3]Лист1!D86","v":"Комплексное музейное занятие «Ремёсла и промыслы земли Алексеевской»"},{"$f":"[3]Лист1!E86","v":"2023-11-02"},{"$f":"[3]Лист1!F86","v":"\"Культурный клуб\""}]
[184,"Алексеевский район",{"$f":"[3]Лист1!C87","v":"МБУ \"МРК\""},{"$f":"[3]Лист1!D87","v":"Музейный урок «Алексеевцы - кавалеры солдатского ордена Славы»"},{"$f":"[3]Лист1!E87","v":"2023-11-07"},{"$f":"[3]Лист1!F87","v":"\"Культурный клуб\""}]
[185,"Алексеевский район",{"$f":"[3]Лист1!C88","v":"МБУ \"МРК\""},{"$f":"[3]Лист1!D88","v":"Гражданская война на территории края и её участники"},{"$f":"[3]Лист1!E88","v":"2023-11-09"},{"$f":"[3]Лист1!F88","v":"\"Культурный клуб\""}]
[186,"Алексеевский район",{"$f":"[3]Лист1!C89","v":"МБУ \"МРК\""},{"$f":"[3]Лист1!D89","v":"Мастер – класс «Каз канаты бәйрәме» («Праздник гусиного пера») по плетению кисточек из гусиных перьев)."},{"$f":"[3]Лист1!E89","v":"2023-11-15"},{"$f":"[3]Лист1!F89","v":"\"Культурный клуб\""}]
[187,"Алексеевский район",{"$f":"[3]Лист1!C90","v":"МБУ \"МРК\""},{"$f":"[3]Лист1!D90","v":"Музейный урок «Солдаты Первой мировой»"},{"$f":"[3]Лист1!E90","v":"2023-11-16"},{"$f":"[3]Лист1!F90","v":"\"Культурный клуб\""}]
[188,"Алексеевский район",{"$f":"[3]Лист1!C91","v":"МБУ \"МРК\""},{"$f":"[3]Лист1!D91","v":"Музейный урок «Топонимика родного края. Происхождение названий сёл и деревень Алексеевского района»"},{"$f":"[3]Лист1!E91","v":"2023-11-21"},{"$f":"[3]Лист1!F91","v":"\"Культурный клуб\""}]
[189,"Алексеевский район",{"$f":"[3]Лист1!C92","v":"МБУ \"МРК\""},{"$f":"[3]Лист1!D92","v":"Музейный урок «Война. Женщины и судьбы»"},{"$f":"[3]Лист1!E92","v":"2023-11-23"},{"$f":"[3]Лист1!F92","v":"\"Культурный клуб\""}]
[190,"Алексеевский район",{"$f":"[3]Лист1!C93","v":"МБУ \"МРК\""},{"$f":"[3]Лист1!D93","v":"Музейный урок «На Карельском перешейке. К началу Советско-финской войны»"},{"$f":"[3]Лист1!E93","v":"2023-11-28"},{"$f":"[3]Лист1!F93","v":"\"Культурный клуб\""}]
[191,"Алексеевский район",{"$f":"[3]Лист1!C94","v":"МБУ \"МРК\""},{"$f":"[3]Лист1!D94","v":"Музейный урок «Советские боевые и трудовые награды»"},{"$f":"[3]Лист1!E94","v":"2023-11-30"},{"$f":"[3]Лист1!F94","v":"\"Культурный клуб\""}]
[192,"Алексеевский район",{"$f":"[3]Лист1!C95","v":"МБУ \"МРК\""},{"$f":"[3]Лист1!D95","v":"Музейный урок «Герои Отечества: известные и забытые имена»"},{"$f":"[3]Лист1!E95","v":"2023-12-05"},{"$f":"[3]Лист1!F95","v":"\"Культурный клуб\""}]
[193,"Алексеевский район",{"$f":"[3]Лист1!C96","v":"МБУ \"МРК\""},{"$f":"[3]Лист1!D96","v":"Мастер – класс по украшению татарского головного убора калфак. «Калфакларда — милләт тарихы» («Маленькая вещица с большим значением»)."},{"$f":"[3]Лист1!E96","v":"2023-12-08"},{"$f":"[3]Лист1!F96","v":"\"Культурный клуб\""}]
[194,"Алексеевский район",{"$f":"[3]Лист1!C97","v":"МБУ \"МРК\""},{"$f":"[3]Лист1!D97","v":"Битва за Москву и её участники из Алексеевского района"},{"$f":"[3]Лист1!E97","v":"2023-12-12"},{"$f":"[3]Лист1!F97","v":"\"Культурный клуб\""}]
[195,"Алексеевский район",{"$f":"[3]Лист1!C98","v":"МБУ \"МРК\""},{"$f":"[3]Лист1!D98","v":"Мастер-класс «Новогодний декупаж»"},{"$f":"[3]Лист1!E98","v":"2023-12-15"},{"$f":"[3]Лист1!F98","v":"\"Культурный клуб\""}]
[196,"Алексеевский район",{"$f":"[3]Лист1!C99","v":"МБУ \"МРК\""},{"$f":"[3]Лист1!D99","v":"Комплексное занятие «Новогодняя ёлочная игрушка своими руками»"},{"$f":"[3]Лист1!E99","v":"2023-12-19"},{"$f":"[3]Лист1!F99","v":"\"Культурный клуб\""}]
[197,"Алексеевский район",{"$f":"[3]Лист1!C100","v":"МБУ \"МРК\""},{"$f":"[3]Лист1!D100","v":"Комплексное занятие «Новогодняя ёлочная игрушка своими руками»"},{"$f":"[3]Лист1!E100","v":"2023-12-21"},{"$f":"[3]Лист1!F100","v":"\"Культурный клуб\""}]
[198,"Алексеевский район",{"$f":"[3]Лист1!C101","v":"МБУ \"МРК\""},{"$f":"[3]Лист1!D101","v":"Музейный урок «Новый год на фронте и в тылу»"},{"$f":"[3]Лист1!E101","v":"2023-12-26"},{"$f":"[3]Лист1!F101","v":"\"Культурный клуб\""}]
[199,"Алексеевский район",{"$f":"[3]Лист1!C102","v":"МБУ \"МРК\""},{"$f":"[3]Лист1!D102","v":"Мастер-класс «Приближая Рождество»"},{"$f":"[3]Лист1!E102","v":"2023-12-28"},{"$f":"[3]Лист1!F102","v":"\"Культурный клуб\""}]